Cogmind - Beta 17.1 @@@ ROGUE MODE // 2026.09.03 @ 01:17:26 Player: SnailSD Result: Core destroyed Performance ------------- Evolutions (0) 0 Regions Visited (1) 200 Robots Destroyed (2) 10 Value Destroyed (23) 23 Prototype IDs (0) 0 Alien Tech Used (0) 0 Bonus (0) 0 TOTAL SCORE: 233 Bonus ------- None Cogmind --------- Core Integrity 0/250 Matter 236/300 Energy 100/100 System Corruption 37% Temperature Cool (0) Movement Core (100) Ox1 Location -10/Materials Parts ------- > --- POWER (1) -------- (None) > --- PROPULSION (2) --- (None) > --- UTILITY (2) ------ Small Storage Unit > --- WEAPON (2) ------- (None) > --- INVENTORY (8) ---- Light Ion Engine Compact Wheel Flight Unit Signal Interpreter Improved Terrain Scanner Targeting Computer Medium Laser Light Assault Rifle Peak State ------------ > --- POWER ------------ Ion Engine > --- PROPULSION ------- Wheel Compact Wheel > --- UTILITY ---------- Small Storage Unit Seismic Detector > --- WEAPON ----------- Medium Laser Light Assault Rifle > --- INVENTORY -------- Ion Engine Light Ion Engine Wheel Compact Wheel Compact Wheel Improved Terrain Scanner Medium Laser Mining Laser [Rating: 8] Favorites ----------- Power Ion Engine Engine Ion Engine Propulsion Compact Wheel Wheel Compact Wheel Utility Small Storage Unit Device Sensor Array Storage Small Storage Unit Weapon Medium Laser Energy Gun Medium Laser Ballistic Gun Light Assault Rifle Special Weapon Mining Laser Build | -11 -10 ------- Run | Yrd Mat Slots Evolved . | . . Power . | . . Propulsion . | . . Utility . | . . Weapon . | . . Parts Attached 12 | 8 4 Power 1 | 1 . Engine 1 | 1 . Core . | . . Reactor . | . . Propulsion 4 | 3 1 Treads . | . . Leg . | . . Wheel 4 | 3 1 Hover . | . . Flight . | . . Utility 3 | 2 1 Device 2 | 1 1 Storage 1 | 1 . Processor . | . . Hackware . | . . Protection . | . . Artifact . | . . Weapon 4 | 2 2 Energy Gun 2 | 1 1 Energy Cannon . | . . Ballistic Gun 1 | 1 . Ballistic Cannon . | . . Launcher . | . . Special Weapon 1 | . 1 Impact Weapon . | . . Slashing Weapon . | . . Piercing Weapon . | . . Special Melee Weapon . | . . Unidentified Prototypes . | . . Parts Lost 6 | . 6 Power 1 | . 1 Propulsion 2 | . 2 Utility 1 | . 1 Weapon 2 | . 2 Highest Loss Streak 2 | . 2 To Critical Strikes . | . . Average Backups 7 | 2 8 Power 1 | 1 1 Propulsion 2 | . 2 Utility 2 | . 2 Weapon 1 | . 2 Tool/Special . | . . Unused Backups 8 | . 8 Power 2 | . 2 Propulsion 3 | . 3 Utility 3 | . 3 Weapon . | . . Tool/Special . | . . Average Slot Usage (%) 67 | . 67 Engine 7 | . 7 Wheel 21 | . 21 Device 5 | . 5 Storage 14 | . 14 Energy Gun 13 | . 13 Ballistic Gun 2 | . 2 Special Weapon 2 | . 2 Peak Build Rating 8 | 8 8 Average Rating 5 | 5 5 On Entrance 4 | . 8 Avg Prop Armor Cover (%) . | . . Naked Turns . | . . Heaviest Build 15 | 14 15 Greatest Support 32 | 26 32 Greatest Overweight (x) . | . . Average Overweight (x) . | . . Largest Inventory Capacity 8 | 8 8 Average Capacity 7 | 7 8 Most Carried 8 | 8 8 Average Carried 7 | 3 7 Final Capacity 8 | 8 8 Final Carried 8 | 8 8 Class Distribution -------------------- 100% | Mutant Dominant Class ---------------- Mutant | -10/Materials Resources | -11 -10 ----------- Run | Yrd Mat Matter Collected 284 | 284 . Remotely . | . . Salvage Created 104 | 104 . Parts 10 | 10 . Haulers Intercepted . | . . Recyclers Shooed . | . . Parts Field Recycled . | . . Retrieved Matter . | . . Parts Self-Destructed . | . . Prevented . | . . Parts Restored . | . . Kills | -11 -10 ------- Run | Yrd Mat Combat Hostiles Destroyed . | . . Classes Destroyed 2 | 2 . Tunneler 1 | 1 . Recycler 1 | 1 . Best Kill Streak 1 | 1 . Combat Bots Only . | . . Max Kills in Single Turn 1 | 1 . Gunslinging . | . . Exploded . | . . Melee . | . . Uniques/NPCs Destroyed . | . . Combat | -11 -10 -------- Run | Yrd Mat Hostile Shots Fired . | . . Missed . | . . Hits . | . . Damage Taken 764 | . 764 Core 250 | . 250 Absorbed by Shields . | . . Core Remaining (%) 100 | 100 . Volleys Fired 14 | 4 10 Largest 2 | 2 1 Hottest 100 | 70 100 Shots Fired 19 | 8 11 Gun 11 | 8 3 Cannon . | . . Launcher . | . . Special 8 | . 8 Kinetic 4 | 4 . Thermal 15 | 4 11 Explosive . | . . Electromagnetic . | . . Robot Hit Streak 2 | 1 2 Robot Miss Streak 2 | 2 . Penetration Max . | . . Secondary Targets . | . . Shots Hit Robots 5 | 4 1 Core Hits 3 | 3 . Critical Kills 1 | 1 . Critical Parts Destroyed . | . . Critical Strikes 1 | 1 . Destroy 1 | 1 . Melee Attacks . | . . Impact . | . . Slashing . | . . Piercing . | . . Sneak Attacks . | . . Combat Hostiles . | . . Follow-up Attacks . | . . Damage Inflicted 157 | 41 116 Guns 41 | 41 . Cannons . | . . Explosions . | . . Melee . | . . Ramming 116 | . 116 Kinetic 15 | 15 . Thermal 26 | 26 . Explosive . | . . Electromagnetic . | . . Impact . | . . Slashing . | . . Piercing . | . . Highest Corruption 37 | . 37 Average Corruption 12 | . 12 Corruption Purged . | . . Corruption Blocked . | . . Effects 12 | . 12 Message Errors 2 | . 2 Matter Fused 6 | . 6 Heat Flow Errors 2 | . 2 Energy Discharges 1 | . 1 Misfires 1 | . 1 Overload Shots . | . . Overflow Damage . | . . Projectiles . | . . Explosions . | . . Melee . | . . Knockbacks . | . . Impact . | . . Kinetic . | . . Secondary . | . . Self-Inflicted Damage 116 | . 116 Shots . | . . Rammed . | . . Targets Rammed . | . . Kicked . | . . Crushed . | . . Highest Temperature 202 | 70 202 Average Temperature 50 | 35 53 Received Heat Transfer . | . . Siege Activations . | . . Martial Activations . | . . Shielding Activations . | . . Robots Disrupted . | . . Combat Hostiles . | . . Robots Corrupted . | . . Combat Hostiles . | . . Parts Fried . | . . Impact Corruptions . | . . Robots Melted . | . . Combat Hostiles . | . . Parts Melted . | . . Heat Transferred 74 | 74 . Parts Sabotaged . | . . Parts Stolen . | . . Parts Stripped . | . . Power Chain Reactions . | . . Alert | -11 -10 ------- Run | Yrd Mat Maximum Alert Level . | . . Low Security (%) 100 | 100 100 Level 1 . | . . Level 2 . | . . Level 3 . | . . Level 4 . | . . Level 5 . | . . High Security . | . . Max Security . | . . Peak Influence 123 | 5 123 Initial . | . . Average 17 | 1 20 Influence Increases 174 | 10 164 Destroy 0b10 Robot/NC 10 | 10 . Successful Hack 23 | . 23 Disable Machine 15 | . 15 Destroy Structure 6 | . 6 Lose Combat Pursuer 120 | . 120 Influence Decreases 174 | 10 164 Time Decay 134 | 10 124 Lost Part 40 | . 40 Squads Dispatched 1 | . 1 Investigation . | . . Extermination . | . . Reinforcement 1 | . 1 Assault . | . . Garrison . | . . Intercept . | . . Searches Triggered . | . . Construction Impeded . | . . Haulers Reinforced . | . . Active Scanning Responses . | . . Cargo Convoy Interrupts . | . . Stealth | -11 -10 --------- Run | Yrd Mat Distress Signals 1 | . 1 Communications Jammed . | . . Distress Signals . | . . Times Spotted 9 | . 9 Peak Tracking Total 9 | . 9 Tactical Retreats 1 | . 1 Traps | -11 -10 ------- Run | Yrd Mat Traps Triggered . | . . Indirectly . | . . Trap Hack Attempts . | . . Triggered . | . . Disarmed . | . . Reprogrammed . | . . Reused . | . . Traps Extracted . | . . Installed . | . . Triggered . | . . Machines | -11 -10 ---------- Run | Yrd Mat Machines Disabled 1 | . 1 Max in Single Turn 1 | . 1 Machines Repaired . | . . Machines Dismantled . | . . Machines Sabotaged . | . . Overloaded Fab Kills . | . . Hacking | -11 -10 --------- Run | Yrd Mat Machines Accessed 4 | . 4 Terminals 2 | . 2 Fabricators . | . . Repair Stations 1 | . 1 Recycling Units 1 | . 1 Scanalyzers . | . . Garrison Access . | . . Total Hacks 10 | . 10 Successful 7 | . 7 Failed 3 | . 3 Catastrophic 1 | . 1 Database Lockouts . | . . Manual 3 | . 3 Terminals 8 | . 8 Fabricators . | . . Repair Stations 1 | . 1 Recycling Units 1 | . 1 Scanalyzers . | . . Garrison Access . | . . Terminal Hacks 4 | . 4 Robot Analysis 2 | . 2 Scanalyzer Index 1 | . 1 Hauler Manifests 1 | . 1 Fabricator Hacks . | . . Repair Station Hacks 1 | . 1 Scan Component 1 | . 1 Recycling Unit Hacks 1 | . 1 Retrieve Components 1 | . 1 Scanalyzer . | . . Garrison Access Hacks . | . . Unauthorized Hacks 1 | . 1 Terminals 1 | . 1 Operators 1 | . 1 Fabricators . | . . Repair Stations . | . . Recycling Units . | . . Scanalyzers . | . . Garrison Access . | . . Data Cores Recovered . | . . Used . | . . Hacking Detections 3 | . 3 Full Trace Events 1 | . 1 Feedback Events . | . . Feedback Blocked . | . . Robot Schematics Acquired . | . . Robots Built . | . . Authchips . | . . Time . | . . Total Robot Build Rating . | . . Part Schematics Acquired . | . . Parts Built . | . . Authchips . | . . Time . | . . Total Part Build Rating . | . . Part Studies Acquired . | . . Parts Repaired . | . . Time . | . . Parts Recycled . | . . Recycled Matter . | . . Retrieved Matter . | . . Retrieved Components 3 | . 3 Parts Scanalyzed . | . . Part Schematics Acquired . | . . Parts Damaged . | . . Bothacking | -11 -10 ------------ Run | Yrd Mat Used RIF Installer . | . . Robots Hacked . | . . Non-combat . | . . Combat . | . . Robot Hacks Applied . | . . Relay Couplers Released . | . . Fabnet Peak Effective % . | . . Robots Rewired . | . . Allies Hacked . | . . Hacks Repelled . | . . Allies | -11 -10 -------- Run | Yrd Mat Total Allies . | . . Largest Group . | . . Highest-Rated Group . | . . Highest-Rated Ally . | . . Total Orders . | . . Ally Attacks . | . . Total Damage . | . . Kills . | . . Allies Corrupted . | . . Allies Melted . | . . Intel | -11 -10 ------- Run | Yrd Mat Active Infowar (turns) 197 | 16 181 Sensors 137 | . 137 Seismic 60 | 16 44 Robot Analysis Total 2 | . 2 Derelict Logs Recovered . | . . Drone Launches . | . . Drone Recoveries . | . . Exploration | -11 -10 ------------- Run | Yrd Mat Turns Passed 532 | 85 447 Spaces Moved 213 | 62 151 Core 2 | 2 . Treads . | . . Legs . | . . Wheels 211 | 60 151 Hover . | . . Flight . | . . Fastest Speed 50 | 50 80 Average Speed 87 | 87 88 Slowest Speed 100 | 90 100 Overloaded Moves . | . . Propulsion Burnouts . | . . Robots Hopped . | . . Potential Cave-ins . | . . Cave-ins Triggered 7 | . 7 Exploration Rate (%) 16 | 4 29 Regions Visited 1 Branch Regions . Pre-discovered Areas . | . . Known Exits Taken . | . . Unknown Exits Taken 1 | 1 . Scrap Searched . | . . Spaces Dug 5 | . 5 Terrain Destroyed 6 | . 6 Melee . | . . Projectile 6 | . 6 AOE . | . . Terrain Rammed 29 | . 29 Walls Destroyed . | . . Machines Disabled . | . . Actions | -11 -10 --------- Run | Yrd Mat Total 520 | 81 439 Wait 236 | . 236 Move 212 | 61 151 Hop . | . . Pick Up 12 | 8 4 Fast Attach 8 | 7 1 Attach 2 | . 2 Detach . | . . Swap 3 | 1 2 Drop 5 | . 5 Fire 14 | 4 10 Melee . | . . Ram 28 | . 28 Kick . | . . Crush . | . . Escape Stasis . | . . Rewire . | . . Trap . | . . Miscellaneous . | . . Route ------- -11/Scrapyard -10/Materials History --------- Turn | Location | Event 33 | -11/Scrapyard | Discovered new exit (range 16) 86 | -11/Scrapyard | Entered Materials 269 | -10/Materials | Crushed by falling debris 286 | -10/Materials | Crushed by falling debris 308 | -10/Materials | Build established: Mutant 333 | -10/Materials | Crushed by falling debris 333 | -10/Materials | System corruption reached 10% 355 | -10/Materials | Crushed by falling debris 426 | -10/Materials | Crushed by falling debris 482 | -10/Materials | Crushed by falling debris 505 | -10/Materials | Crushed by falling debris 505 | -10/Materials | Core integrity fell below 50% 519 | -10/Materials | System corruption reached 30% 521 | -10/Materials | Core integrity fell below 20% 533 | -10/Materials | Core destroyed Last Messages --------------- 00519_ Slammed into Terminal. 00520_ Destabilizing: Core damaged (-2). 00521_ Slammed into Terminal. 00523_ Destabilizing: Core damaged (-2). 00524_ Slammed into Terminal. 00524_ Destabilizing: System corrupted (+2). 00525_ Slammed into Terminal. 00526_ Destabilizing: Core damaged (-7). 00527_ Slammed into Terminal. 00527_ Destabilizing: System corrupted (+2). 00527_ Destabilizing: Core damaged (-2). 00528_ Slammed into Terminal. 00528_ Destabilizing: System corrupted (+1). 00529_ Slammed into Terminal. 00529_ Destabilizing: Core damaged (-10). 00530_ Slammed into Terminal. 00530_ Destabilizing: System corrupted (+1). 00531_ Slammed into Terminal. 00531_ Destabilizing: System corrupted (+1). 00532_ Slammed into Terminal. Map ----- +----------------------------------------------------+ | | | | | | | | | | | | | | | | | | | | | ?????????????????????????????????????? | | ?????????????????????????????????????? | | ?????????????????????????????????????? | | ?????????????????????????????????????? | | ?????????????????????????????????????? | | ?????????????????????????????????????? | | ?????????????????????????????????????? | | ?????????????????????????????????????? | | ?????????????????????????????????????? | | ?????????????????????????????????????? | | ?????????????????????????????????????? | | ?????????????????????????????????????? | | ?????????????????????????????????????? | | ?????????????????#######?????????????? | | ?????????????????#= ![[ ###??????????? | | ?????????????????# ![ "@##?????????? | | ?????????????????# ![ T########????? | | ?????????????????# "# #????? | | ?????????????????# ## """ #????? | | ????????????###### ## """ #????? | | ??????????? ####/#??# """ #????? | | ?????????? ^ g???/ #????? | | ?????????? g????# #????? | | ?????????o g ??###########??? | | ????????? ??# #??? | | ???????? ^ ??# """ """ #??? | | ???????? ### """ """ ###? | | ???????? =!] # """ """ ""#? | | ???????? =]] / T"#? | | ???????? =]] # ""#? | | ?????????#+############ # ###? | | ??????????????????????# # ! #??? | | ?????????????????????## ###########??? | | ?????????????????????# ###[ ####??? | | ?????????????????????# ! #??? | | ?????????????????????# !### ## #??? | | ?????????????????????########+### #??? | | ?????????????????????##?# ## #??? | | ????????????????????????# ## #??? | | ????????????????????????#""!= ## #??? | +----------------------------------------------------+ Best States ------------- Heat Dissipation 25 Energy Generation 10 Energy Capacity 250 Matter Stores 300 Matter Capacity 300 Sight Range 16 Robot Scan Range 14 Terrain Scan Density 10 Evasion (%) 44 Item Schematics ----------------- None Robot Schematics ------------------ None Fabricated ------------ Nothing Repaired ---------- Nothing Studied --------- None Alien Tech Used ----------------- None Achievements -------------- None Challenges ------------ None Game ------ Seed ConstructTerrorNeutralizer Manual? 0 Play Time 00:08:17 Cumulative 73.4 hours Start 2026.09.03 @ 01:10:32 End 2026.09.03 @ 01:17:26 Sessions 1 Manual Loads 0 Difficulty Rogue Special Mode None Game No. 125 Rogue 125 Adventurer 0 Explorer 0 Win Type - Total 1 Types 1/0/0/0/0/0/0/0/0/0 Lore% 43 Gallery% 40 Achievement% 31 Wizard Run 0 Options --------- Layout 1 ASCII 1 Keyboard 0 Movement Numpad Keybinds 0 Fullscreen 2 Font 24/Smallcaps Map View 50x35 Zoom Use 0% Tactical HUD 1 Map Filters NONE Filters NONE Steam 1 RUN: 1424d504-53d5-4fdc-b52b-50472efc7ce1